[Event "1.FrauenBL 2016-17"]
[Site "Berlin"]
[Date "2017.04.29"]
[Round "11.2"]
[White "Lauterbach, Ingrid"]
[Black "Braun, Elina"]
[Result "1/2-1/2"]
[ECO "A08"]
[WhiteElo "2101"]
[BlackElo "1948"]
[Annotator "NA"]
[PlyCount "78"]
[EventDate "2017.??.??"]
[EventType "team-tourn"]
[EventCountry "GER"]
[SourceTitle "playchess.com"]
[Source "ChessBase"]
[SourceQuality "1"]
[WhiteTeam "SF Deizisau"]
[BlackTeam "SG Augsburg"]
[TimeControl "40/6000+30:3000+30"]

1. Nf3 {[%emt 1:30:27]} Nf6 {[%emt 1:30:15]} 2. g3 {[%emt 1:30:51]} d5 {[%emt 1:29:51]} 3. Bg2 {[%emt 1:31:09]} c5 {[%emt 1:31:09]} 4. d3 {[%emt 1:31:08]} Nc6 {[%emt 1:30:24]} 5. Nbd2 {[%emt 1:30:24]} Bg4 {[%emt 1:29:08] A08: King's Indian Attack} 6. h3 {[%emt 1:29:23]} Bh5 {[%emt 1:29:29]} 7. c4 {[%emt 1:29:29]} (7. g4 Bg6 8. Nh4 e6 9. e3 Be7 10. Qe2 Nd7 11. Nxg6 hxg6 12. a3 Qc7 13. c4 {1-0 (43) Shchekachev,A (2531)-Wojtaszek,R (2734) Berlin 2015}) 7... e5 $146 {[%emt 1:18:55]} (7... e6 8. O-O Be7 9. cxd5 exd5 10. d4 c4 11. Nb1 Bxf3 12. Bxf3 b5 13. Bg5 {1-0 (36) Haub,T (2454)-Iglesias,J (2178) Vandoeuvre 2008}) 8. Qa4 {[%emt 1:03:01]} Bxf3 {[%emt 1:03:24]} 9. Nxf3 {[%emt 1:00:27]} Qd6 {[%emt 0:53:36]} 10. O-O {[%emt 0:56:22]} Be7 {[%emt 0:52:38]} 11. a3 {[%emt 0:46:29]} O-O {[%emt 0:49:58]} 12. Nh4 {[%emt 0:39:57]} Rfe8 {[%emt 0:35:34]} 13. Nf5 {[%emt 0:34:44]} Qd7 {[%emt 0:35:07]} 14. Nxe7+ {[%emt 0:27:55]} Rxe7 {[%emt 0:34:51]} 15. Bg5 {[%emt 0:27:35]} e4 {[%emt 0:29:14]} (15... Nd4 $14 16. Qd1 dxc4) 16. cxd5 {[%emt 0:26:36]} Qxd5 {[%emt 0:28:19]} 17. Bxf6 {[%emt 0:26:29]} gxf6 {[%emt 0:28:24]} 18. Bxe4 {[%emt 0:26:39]} Qe6 {[%emt 0:27:45]} 19. g4 {[%emt 0:22:57]} Nd4 {[%emt 0:23:47]} 20. e3 {[%emt 0:22:51]} f5 {[%emt 0:23:39]} 21. gxf5 {[%emt 0:19:53]} Nxf5 {[%emt 0:23:51]} 22. Bf3 {[%emt 0:18:13]} Kh8 {[%emt 0:21:41]} 23. Kh1 {[%emt 0:17:48]} Nxe3 {[%emt 0:17:48]} 24. Qh4 {[%emt 0:13:41]} Nxf1 {[%emt 0:17:58]} 25. Rxf1 {[%emt 0:14:06]} Rae8 {[%emt 0:15:09]} 26. d4 {[%emt 0:15:09]} Qf5 {[%emt 0:13:38]} 27. Bg2 {[%emt 0:10:56]} Re1 {[%emt 0:12:01]} 28. dxc5 {[%emt 0:11:14]} Rxf1+ {[%emt 0:10:16]} 29. Bxf1 {[%emt 0:11:38]} Qe4+ {[%emt 0:10:33]} 30. Qxe4 {[%emt 0:11:35]} Rxe4 {[%emt 0:11:35]} 31. Bg2 {[%emt 0:11:08]} Re1+ {[%emt 0:10:27]} 32. Kh2 {[%emt 0:11:33]} Re2 {[%emt 0:10:49]} 33. Bxb7 {[%emt 0:11:54]} Rxf2+ {[%emt 0:11:06]} 34. Kg3 {[%emt 0:11:06]} Rxb2 {[%emt 0:11:24]} 35. c6 $11 {[%emt 0:12:43]} Rb3+ {[%emt 0:09:15]} 36. Kf4 {[%emt 0:12:50]} Rxa3 {[%emt 0:09:35]} 37. c7 {[%emt 0:13:06]} Rc3 {[%emt 0:10:01]} 38. c8=Q+ {[%emt 0:13:29]} Rxc8 {[%emt 0:10:23]} 39. Bxc8 {[%emt 0:13:54]} a5 {[%emt 0:10:30]} 1/2-1/2

[Event "1.FrauenBL 2016-17"]
[Site "Berlin"]
[Date "2017.04.29"]
[Round "11.2"]
[White "Diederichs, Luise"]
[Black "Boehm, Jana"]
[Result "1/2-1/2"]
[ECO "D87"]
[WhiteElo "1971"]
[BlackElo "1963"]
[Annotator "NA"]
[PlyCount "72"]
[EventDate "2017.??.??"]
[EventType "team-tourn"]
[EventCountry "GER"]
[SourceTitle "playchess.com"]
[Source "ChessBase"]
[SourceQuality "1"]
[WhiteTeam "TuRa Harksheide"]
[BlackTeam "SK Lehrte"]
[TimeControl "40/6000+30:3000+30"]

1. c4 {[%emt 1:30:25]} Nf6 {[%emt 1:30:25]} 2. Nc3 {[%emt 1:30:50]} d5 {[%emt 1:30:33]} 3. cxd5 {[%emt 1:31:08]} Nxd5 {[%emt 1:30:57]} 4. e4 {[%emt 1:31:18]} Nxc3 {[%emt 1:30:51]} 5. bxc3 {[%emt 1:31:37]} g6 {[%emt 1:30:20]} 6. d4 {[%emt 1:30:20]} c5 {[%emt 1:27:59]} 7. Bc4 {[%emt 1:27:59]} Bg7 {[%emt 1:27:30]} 8. Ne2 {[%emt 1:30:56]} O-O {[%emt 1:27:36]} 9. O-O {[%emt 1:30:13]} Nc6 {[%emt 1:27:33]} 10. Be3 {[%emt 1:27:33]} Bg4 {[%emt 1:25:31]} 11. f3 {[%emt 1:29:03]} Bd7 {[%emt 1:25:50]} 12. dxc5 {[%emt 1:25:43]} Na5 {[%emt 1:19:02]} 13. Qd3 {[%emt 1:22:13]} Qc7 {[%emt 1:14:20]} 14. Bb3 {[%emt 1:11:23]} Rfd8 {[%emt 1:05:30]} 15. Rad1 {[%emt 1:05:30]} Rac8 {[%emt 0:59:17]} 16. Nd4 {[%emt 1:01:47]} a6 {[%emt 1:01:47]} 17. Qe2 $1 {[%emt 0:51:10]} e5 {[%emt 0:43:24]} 18. Nc2 {[%emt 0:43:24]} Bf8 $14 {[%emt 0:42:54]} 19. Nb4 {[%emt 0:42:54]} Nxb3 {[%emt 0:31:46]} 20. axb3 {[%emt 0:31:46]} Be6 {[%emt 0:46:15]} 21. Nd5 {[%emt 0:45:46]} Bxd5 {[%emt 0:31:41]} 22. exd5 {[%emt 0:46:05]} Bxc5 {[%emt 0:31:43]} 23. c4 {[%emt 0:31:43]} b5 {[%emt 0:29:52]} 24. Rc1 {[%emt 0:45:12]} Bxe3+ {[%emt 0:28:55]} 25. Qxe3 {[%emt 0:45:27]} Qc5 {[%emt 0:45:27]} 26. Kf2 {[%emt 0:39:25]} Kf8 {[%emt 0:29:16]} 27. Qxc5+ {[%emt 0:38:38]} Rxc5 {[%emt 0:29:43]} 28. Ke3 {[%emt 0:38:39]} Ke7 {[%emt 0:28:14]} 29. Kd3 {[%emt 0:37:44]} a5 {[%emt 0:26:32]} 30. Ke4 {[%emt 0:32:04]} Kd6 {[%emt 0:21:51]} 31. Kd3 {[%emt 0:10:57]} Ke7 {[%emt 0:19:51]} 32. Ke4 {[%emt 0:04:43]} Kd6 {[%emt 0:20:03]} 33. Kd3 {[%emt 0:20:03]} f5 {[%emt 0:09:50]} 34. Rc2 {[%emt 0:09:50]} Rdc8 {[%emt 0:09:16]} 35. Rfc1 {[%emt 0:01:02]} R8c7 {[%emt 0:01:02]} 36. Rc3 {[%emt 0:00:47]} Rc8 {[%emt 0:07:12]} 1/2-1/2

[Event "1.FrauenBL 2016-17"]
[Site "Berlin"]
[Date "2017.04.29"]
[Round "11.3"]
[White "Umpfenbach, Carolin"]
[Black "Baciu, Diana"]
[Result "1-0"]
[ECO "D38"]
[WhiteElo "2131"]
[BlackElo "2275"]
[Annotator "NA"]
[PlyCount "69"]
[EventDate "2017.??.??"]
[EventType "team-tourn"]
[EventCountry "GER"]
[SourceTitle "playchess.com"]
[Source "ChessBase"]
[SourceQuality "1"]
[WhiteTeam "SV Medizin Erfurt"]
[BlackTeam "Hamburger SK"]
[TimeControl "40/6000+30:3000+30"]

{[%evp 18,69,16,14,24,12,79,32767,54,17,85,81,112,32767,32767,32767,32767,32767,32767,32767,32767,700,709,32767,647,669,718,681,693,32767,661,32767,674,622,632,32767,32767,32767,32767,638,1103,691,32767,32767,32767,32767,32767,32767,706,32767,32767,32767,705,782]} 1. d4 {[%emt 1:30:28]} d5 {[%emt 1:30:28]} 2. c4 {[%emt 1:30:54]} e6 {[%emt 1:30:51]} 3. Nc3 {[%emt 1:31:21]} Nf6 {[%emt 1:30:01]} 4. Bg5 {[%emt 1:30:57]} Bb4 {[%emt 1:29:57]} 5. e3 {[%emt 1:30:57]} h6 {[%emt 1:30:01]} 6. Bxf6 {[%emt 1:29:30]} Qxf6 {[%emt 1:29:30]} 7. Nf3 {[%emt 1:29:26]} O-O {[%emt 1:28:00]} 8. Qb3 {[%emt 1:19:47]} c5 {[%emt 1:26:35] D38: Queen's Gambit Declined: Ragozin Defence (4 Nf3 Bb4)} 9. Rc1 {[%emt 1:09:22]} (9. cxd5 exd5 10. a3 Bxc3+ 11. Qxc3 Nd7 12. Be2 b6 13. O-O Bb7 14. Rac1 c4 15. Nd2 b5 16. Bf3 Qe7 17. Qa5 Bc6 18. b3 Qd6 19. bxc4 bxc4 20. Nb1 Rab8 {½-½ (61) Shirov,A (2691)-Giri,A (2768) Hoogeveen 2014}) 9... dxc4 {[%emt 0:50:17]} 10. Bxc4 {[%emt 0:50:17]} Nc6 {[%emt 0:47:58]} 11. dxc5 {[%emt 1:08:00]} Qg6 {[%emt 0:47:24]} 12. O-O {[%emt 0:47:24]} Bxc5 {[%emt 1:07:47]} 13. Ne2 $146 {[%emt 0:51:02]} (13. Qb5 Bb4 14. Bd3 f5 15. Ne2 a6 16. Qa4 {½-½ (31) Trapl,J (2340)-Blatny,P (2415) Prague 1986}) 13... e5 {[%emt 0:33:57]} (13... Qf6 $11) 14. Bd5 {[%emt 0:42:28]} Bd6 {[%emt 0:33:31]} 15. Ng3 {[%emt 0:40:34]} Ne7 {[%emt 0:30:28]} 16. Rfd1 {[%emt 0:36:31]} Rd8 {[%emt 0:22:14]} 17. Nxe5 {[%emt 0:32:03]} Qf6 {[%emt 0:22:43]} 18. Nxf7 {[%emt 0:29:54]} Rf8 {[%emt 0:08:17]} 19. Nxd6+ {[%emt 0:08:17]} ({Weaker is} 19. Bxb7 Bxg3 20. hxg3 (20. Bxa8 Bxf2+ 21. Kh1 Be6 $15) 20... Bxb7 21. Nxh6+ (21. Qxb7 Qxf7 22. Rc2 Rac8 $15) 21... Kh7 $16) 19... Nxd5 {[%emt 0:08:45]} 20. Nde4 {[%emt 0:22:42]} Qf7 {[%emt 0:22:42]} 21. Qxd5 {[%emt 0:23:06]} Be6 {[%emt 0:08:11]} 22. Qa5 {[%emt 0:15:54]} b6 {[%emt 0:07:31]} 23. Qe1 {[%emt 0:10:02]} Bxa2 {[%emt 0:07:34]} 24. Rd3 {[%emt 0:08:13]} a5 {[%emt 0:04:40]} 25. Rdc3 {[%emt 0:08:03]} Ra7 {[%emt 0:02:38]} 26. Rc8 {[%emt 0:08:00]} Rxc8 {[%emt 0:08:00]} 27. Rxc8+ {[%emt 0:08:27]} Kh7 {[%emt 0:02:19]} 28. h3 {[%emt 0:06:12]} b5 {[%emt 0:06:12]} 29. Rc5 {[%emt 0:04:51]} b4 {[%emt 0:04:51]} 30. Qc1 {[%emt 0:01:51]} Be6 {[%emt 0:00:48]} 31. Nd6 {[%emt 0:05:06]} Qg6 {[%emt 0:05:06]} 32. Nb5 {[%emt 0:04:19]} Rf7 {[%emt 0:00:07]} 33. Nd4 {[%emt 0:00:07]} a4 {[%emt 0:00:07]} 34. Nxe6 {[%emt 0:03:39]} Qxe6 $18 {[%emt 0:00:36]} 35. Qc2+ {[%emt 0:00:36]} 1-0

[Event "1.FrauenBL 2016-17"]
[Site "Berlin"]
[Date "2017.04.29"]
[Round "11.3"]
[White "Zschischang, Marine"]
[Black "Koehler, Inken"]
[Result "1-0"]
[ECO "D13"]
[WhiteElo "2037"]
[BlackElo "1968"]
[Annotator "NA"]
[PlyCount "101"]
[EventDate "2017.??.??"]
[EventType "team-tourn"]
[EventCountry "GER"]
[SourceTitle "playchess.com"]
[Source "ChessBase"]
[SourceQuality "1"]
[WhiteTeam "SK Lehrte"]
[BlackTeam "TuRa Harksheide"]
[TimeControl "40/6000+30:3000+30"]

1. d4 {[%emt 1:30:27]} d5 {[%emt 1:30:21]} 2. c4 {[%emt 1:30:56]} c6 {[%emt 1:30:40]} 3. cxd5 {[%emt 1:31:23]} cxd5 {[%emt 1:30:51]} 4. Nc3 {[%emt 1:31:49]} Nf6 {[%emt 1:29:48]} 5. Nf3 {[%emt 1:32:15]} e6 {[%emt 1:25:02]} 6. Ne5 {[%emt 1:25:02]} Nc6 {[%emt 1:31:17]} 7. e3 {[%emt 1:30:43] D13: Slav Defence: Exchange variation without ...Bf5} Nxe5 {[%emt 1:19:07]} 8. dxe5 {[%emt 1:31:11]} Nd7 {[%emt 1:19:25]} 9. f4 {[%emt 1:19:25]} Qb6 $146 {[%emt 1:05:20]} (9... Be7 10. Bd3 a6 11. O-O b5 12. Ne2 Nc5 13. Bc2 Bb7 14. b3 {0-1 (39) Reinderman,D (2573)-Nyback,T (2643) Wijk aan Zee 2010}) 10. Bd3 {[%emt 1:12:49]} Nc5 {[%emt 1:02:34]} 11. Bc2 {[%emt 1:11:40]} Bd7 {[%emt 1:01:24]} 12. O-O {[%emt 1:10:12]} Bc6 {[%emt 0:53:04]} 13. Rb1 {[%emt 0:49:18]} Ne4 {[%emt 0:40:13]} 14. Bxe4 {[%emt 0:40:13]} dxe4 {[%emt 0:40:15]} 15. b4 {[%emt 0:22:17]} Rd8 {[%emt 0:22:17]} 16. Qc2 {[%emt 0:20:56]} Rd3 {[%emt 0:23:42]} ({Don't choose} 16... Bxb4 $2 17. a3 $18 (17. Nxe4 Qa5 $15)) 17. b5 {[%emt 0:19:35]} Bd5 $1 {[%emt 0:20:10]} 18. Nxd5 {[%emt 0:16:26]} Rxd5 {[%emt 0:20:38]} 19. Qc8+ {[%emt 0:20:38]} Rd8 {[%emt 0:20:18]} 20. Qc4 {[%emt 0:20:18]} Bc5 {[%emt 0:16:31]} 21. Qxe4 $11 {[%emt 0:16:31]} O-O {[%emt 0:16:09]} 22. Kf2 {[%emt 0:08:42]} Rd5 {[%emt 0:15:05]} 23. Rb3 {[%emt 0:04:48]} Rfd8 {[%emt 0:14:08]} 24. Kf3 {[%emt 0:03:17]} a6 {[%emt 0:08:58]} 25. Qc4 {[%emt 0:02:25]} axb5 {[%emt 0:07:34]} 26. Qxb5 {[%emt 0:02:39]} Qxb5 {[%emt 0:07:35]} 27. Rxb5 {[%emt 0:03:07]} b6 {[%emt 0:07:43]} 28. Rb3 {[%emt 0:01:35]} Ra8 {[%emt 0:06:31]} 29. a3 {[%emt 0:01:20]} Kf8 {[%emt 0:06:08]} 30. Ke2 {[%emt 0:01:48]} Rad8 {[%emt 0:05:25]} 31. g4 {[%emt 0:01:22]} Ke7 {[%emt 0:04:53]} 32. h4 {[%emt 0:01:20]} R5d7 {[%emt 0:03:50]} 33. h5 {[%emt 0:00:45]} h6 {[%emt 0:02:49]} 34. Rg1 {[%emt 0:00:45]} g5 {[%emt 0:01:38]} 35. hxg6 {[%emt 0:00:56]} fxg6 {[%emt 0:02:02]} 36. Rh1 {[%emt 0:01:21]} Rh8 {[%emt 0:02:15]} 37. Kf3 {[%emt 0:01:20]} h5 {[%emt 0:01:57]} 38. gxh5 {[%emt 0:01:57]} gxh5 {[%emt 0:01:56]} 39. e4 {[%emt 0:01:04]} Kf7 {[%emt 0:00:39]} 40. Be3 {[%emt 0:00:29]} Ra7 {[%emt 0:00:07]} 41. f5 {[%emt 0:28:33]} Rxa3 {[%emt 0:28:06]} 42. Rxa3 {[%emt 0:28:02]} Bxa3 {[%emt 0:28:28]} 43. Bxb6 {[%emt 0:28:11]} Bb2 {[%emt 0:25:44]} 44. Bc7 {[%emt 0:25:44]} Rc8 {[%emt 0:20:14]} 45. Rxh5 {[%emt 0:24:05]} Kg7 {[%emt 0:18:45]} 46. Bd6 {[%emt 0:18:45]} Rc3+ {[%emt 0:18:24]} 47. Ke2 {[%emt 0:16:05]} Rc4 {[%emt 0:16:05]} 48. Kd3 {[%emt 0:11:55]} Rc3+ {[%emt 0:14:54]} 49. Kd2 {[%emt 0:12:18]} Rc4 {[%emt 0:14:53]} 50. fxe6 {[%emt 0:09:07]} Rxe4 {[%emt 0:09:07]} 51. e7 {[%emt 0:09:02]} 1-0

[Event "1.FrauenBL 2016-17"]
[Site "Berlin"]
[Date "2017.04.29"]
[Round "11.4"]
[White "Houska, Jovanka"]
[Black "Movsesian, Julia"]
[Result "1-0"]
[ECO "D37"]
[WhiteElo "2397"]
[BlackElo "2318"]
[Annotator "NA"]
[PlyCount "61"]
[EventDate "2017.??.??"]
[EventType "team-tourn"]
[EventCountry "GER"]
[SourceTitle "playchess.com"]
[Source "ChessBase"]
[SourceQuality "1"]
[WhiteTeam "Karlsruher SF"]
[BlackTeam "Rodewischer SM"]
[TimeControl "40/6000+30:3000+30"]

{[%evp 20,56,43,67,51,18,35,17,80,9,101,98,106,32,37,32767,52,55,123,102,32767,106,32767,157,32767,210,32767,32767,32767,32767,130,32767,32767,32767,32767,213,323,425,1104]} 1. d4 {[%emt 1:30:30]} d5 {[%emt 1:30:19]} 2. Nf3 {[%emt 1:30:31]} Nf6 {[%emt 1:30:35]} 3. c4 {[%emt 1:30:57]} e6 {[%emt 1:31:01]} 4. Nc3 {[%emt 1:31:06]} Be7 {[%emt 1:30:53]} 5. Bf4 {[%emt 1:30:57]} O-O {[%emt 1:28:58]} 6. e3 {[%emt 1:31:22]} Nbd7 {[%emt 1:23:35]} 7. Rc1 {[%emt 1:27:47]} c6 {[%emt 1:22:31]} 8. h3 {[%emt 1:26:40]} Re8 {[%emt 1:22:24]} 9. Bd3 {[%emt 1:26:33]} dxc4 {[%emt 1:15:54]} 10. Bxc4 {[%emt 1:26:56]} Nb6 {[%emt 1:26:56]} 11. Bd3 {[%emt 1:18:45]} Nbd5 {[%emt 1:15:41]} 12. Bg3 {[%emt 1:11:41]} Nxc3 {[%emt 1:10:25]} 13. bxc3 {[%emt 1:12:07]} c5 {[%emt 1:10:51]} (13... b6 $11) 14. O-O {[%emt 1:10:59]} a6 {[%emt 0:48:56]} (14... b6 $11) 15. Ne5 {[%emt 1:08:11]} Bd7 {[%emt 1:08:11]} 16. f4 {[%emt 1:02:15]} cxd4 {[%emt 0:34:21]} 17. exd4 {[%emt 1:00:33]} g6 {[%emt 0:33:37]} 18. Qb3 {[%emt 0:46:41]} Bc6 {[%emt 0:29:04] [#]} ({Better is} 18... Bb5 $14) 19. f5 $1 {[%emt 0:34:27]} ({Much worse is} 19. Nxc6 $6 bxc6 20. Rb1 Nd5 $11) 19... gxf5 {[%emt 0:22:26] [#]} 20. Bxf5 $1 {[%emt 0:34:47]} ({But not} 20. Nxc6 bxc6 21. Rce1 Nd5 $15) 20... Bd5 {[%emt 0:34:47]} 21. c4 {[%emt 0:34:50]} Be4 {[%emt 0:19:35]} 22. Bxe4 {[%emt 0:23:05]} Qxd4+ {[%emt 0:19:36]} 23. Kh1 {[%emt 0:12:58]} Nxe4 {[%emt 0:08:24]} 24. Nxf7 {[%emt 0:11:00]} Bf6 {[%emt 0:07:40]} 25. Nd6 {[%emt 0:09:36]} Nxd6 {[%emt 0:05:59]} 26. Bxd6 {[%emt 0:10:02]} Bg7 {[%emt 0:06:23]} 27. Rcd1 {[%emt 0:09:18]} Qc3 {[%emt 0:09:18]} (27... Qb2 $142 28. Qe3 Qc3) 28. Qxb7 {[%emt 0:09:22]} Qxc4 $18 {[%emt 0:09:22]} (28... Kh8 $142 29. Qe4 Rac8) 29. Rf7 {[%emt 0:09:36]} Qc3 {[%emt 0:09:36]} 30. Rd3 {[%emt 0:08:40]} Qb2 {[%emt 0:01:56]} 31. Rxg7+ {[%emt 0:09:00]} 1-0

[Event "1.FrauenBL 2016-17"]
[Site "Berlin"]
[Date "2017.04.29"]
[Round "11.4"]
[White "Schmidt, Jessica"]
[Black "Von der Weth, Carola"]
[Result "1-0"]
[ECO "D31"]
[WhiteElo "2270"]
[BlackElo "2110"]
[Annotator "NA"]
[PlyCount "59"]
[EventDate "2017.??.??"]
[EventType "team-tourn"]
[EventCountry "GER"]
[SourceTitle "playchess.com"]
[Source "ChessBase"]
[SourceQuality "1"]
[WhiteTeam "Hamburger SK"]
[BlackTeam "SV Medizin Erfurt"]
[TimeControl "40/6000+30:3000+30"]

{[%evp 10,51,37,32767,32767,26,63,51,50,50,32767,37,51,50,117,113,119,116,248,256,302,32767,32767,392,375,32767,32767,32767,32767,32767,343,32767,32767,32767,32767,32767,32767,32767,468,32767,32767,32767,2045,5182]} 1. d4 {[%emt 1:30:30]} d5 {[%emt 1:30:27]} 2. c4 {[%emt 1:30:49]} e6 {[%emt 1:30:31]} 3. Nc3 {[%emt 1:31:12]} c6 {[%emt 1:29:52]} 4. cxd5 {[%emt 1:21:56]} exd5 {[%emt 1:28:46]} 5. Qc2 {[%emt 1:22:18]} f5 {[%emt 1:22:18]} 6. Bf4 {[%emt 1:24:25] D31: Queen's Gambit Declined: Semi-Slav without ...Nf6 (+ Marshall Gambit and Noteboom) and Exchange Variation lines without ...Nf6} Bd6 {[%emt 1:23:13]} 7. Nh3 {[%emt 1:17:52]} Bxf4 {[%emt 1:13:09]} 8. Nxf4 {[%emt 1:18:15]} Nf6 {[%emt 1:13:26]} 9. e3 {[%emt 1:09:41]} O-O {[%emt 1:09:41]} 10. Bd3 {[%emt 1:07:49]} Ne4 {[%emt 0:59:22]} 11. O-O {[%emt 0:59:22]} Qe8 $146 {[%emt 1:00:45]} ({Black should play} 11... g5 $14) (11... Nd6 12. Na4 Rf6 13. h4 Nd7 {½-½ (64) Marentini,M (2085)-Rausch,S (2294) Bad Wiessee 2013}) 12. Nfxd5 {[%emt 0:46:41]} cxd5 {[%emt 0:42:50]} 13. Nxd5 {[%emt 0:42:50]} Nc6 {[%emt 0:33:12]} (13... Rf7 $16 {might work better.}) 14. Nc7 $1 {[%emt 0:45:19]} Qe7 {[%emt 0:31:41]} 15. Nxa8 {[%emt 0:28:49]} Qd6 {[%emt 0:19:31]} 16. Nc7 {[%emt 0:22:48]} Qxc7 {[%emt 0:08:26]} 17. d5 {[%emt 0:08:26]} Rf6 {[%emt 0:07:36]} 18. dxc6 {[%emt 0:08:48]} Rxc6 {[%emt 0:07:16]} 19. Qe2 {[%emt 0:09:13]} Nf6 {[%emt 0:03:34]} 20. Qf3 {[%emt 0:03:34]} g6 {[%emt 0:03:17]} 21. Qg3 {[%emt 0:03:17]} Qb6 {[%emt 0:01:13]} 22. b3 {[%emt 0:06:40]} Be6 {[%emt 0:01:39]} 23. Rac1 {[%emt 0:06:27]} Rd6 {[%emt 0:01:41]} 24. Rfd1 {[%emt 0:06:17]} Qb4 {[%emt 0:00:44]} 25. Qe5 {[%emt 0:05:10]} Nd5 {[%emt 0:00:02]} 26. Bc4 $18 {[%emt 0:00:02]} Qa3 {[%emt 0:00:11]} 27. Bxd5 {[%emt 0:03:33]} Bxd5 {[%emt 0:00:39]} 28. Rc5 {[%emt 0:03:35]} Qc1 {[%emt 0:03:35]} 29. Rc7 {[%emt 0:03:35]} Be4 {[%emt 0:03:35]} 30. Qe6+ {[%emt 0:03:35]} 1-0

[Event "1.FrauenBL 2016-17"]
[Site "Berlin"]
[Date "2017.04.29"]
[Round "11.4"]
[White "Le, Hoang Tran Chau"]
[Black "Manusina, Nicole"]
[Result "0-1"]
[ECO "E57"]
[WhiteElo "2151"]
[BlackElo "1908"]
[Annotator "NA"]
[PlyCount "67"]
[EventDate "2017.??.??"]
[EventType "team-tourn"]
[EventCountry "GER"]
[SourceTitle "playchess.com"]
[Source "ChessBase"]
[SourceQuality "1"]
[WhiteTeam "TuRa Harksheide"]
[BlackTeam "SK Lehrte"]
[TimeControl "40/6000+30:3000+30"]

1. e4 {[%emt 1:30:28]} c6 {[%emt 1:30:28]} 2. d4 {[%emt 1:30:24]} d5 {[%emt 1:30:50]} 3. exd5 {[%emt 1:31:21]} cxd5 {[%emt 1:31:11]} 4. c4 {[%emt 1:31:47]} Nf6 {[%emt 1:31:12]} 5. Nc3 {[%emt 1:30:33]} Nc6 {[%emt 1:30:55]} 6. Bg5 {[%emt 1:30:39]} e6 {[%emt 1:23:30]} 7. Nf3 {[%emt 1:27:19]} dxc4 {[%emt 1:24:00]} 8. Bxc4 {[%emt 1:27:19]} Be7 {[%emt 1:22:25]} 9. O-O {[%emt 1:27:20]} O-O {[%emt 1:22:45]} 10. a3 {[%emt 1:26:44]} a6 {[%emt 1:14:32]} 11. Qd3 {[%emt 1:14:42]} Nd5 {[%emt 1:08:22] E57: Nimzo-Indian: Rubinstein: Main Line: 7...Nc6 8 a3 dxc4 9 Bxc4 cxd4} (11... b5 12. Ba2 b4 13. Bb1 g6 14. axb4 Nxb4 15. Qd2 Bb7 16. Ne5 Nd7 17. Bxe7 Qxe7 18. Be4 Nf6 19. Qg5 Bxe4 20. Nxe4 Nbd5 21. Nc6 Qb7 22. Nxf6+ Nxf6 23. Na5 Qe7 24. Nc6 Qb7 25. Na5 Qe7 26. Nc6 Qb7 {½-½ (26) Vescovi,G (2604)-Lima,D (2509) Fortaleza 2012}) 12. Bd2 $146 {[%emt 0:53:54]} (12. Bxe7 Ncxe7 13. Rae1 Nxc3 14. bxc3 b5 15. Ba2 Ng6 16. Qe4 Ra7 17. Qg4 e5 18. Qg3 exd4 19. Nxd4 Qf6 20. f4 Re7 21. f5 Rxe1 22. Qxe1 Ne7 23. Qe4 Bd7 24. Qb7 Qd6 25. Qf3 Qf6 26. Qb7 {½-½ (26) Bronstein,D-Flohr,S Moscow 1953}) 12... Nxc3 {[%emt 1:06:34]} 13. Bxc3 {[%emt 0:52:50]} Bf6 {[%emt 1:05:59]} 14. Qe4 {[%emt 0:49:41]} Bd7 {[%emt 0:53:00]} 15. Ne5 {[%emt 0:38:51]} Nxe5 {[%emt 0:49:55]} 16. dxe5 {[%emt 0:39:19]} Bc6 {[%emt 0:48:28]} 17. Qg4 {[%emt 0:39:09]} Be7 {[%emt 0:48:31]} 18. Rad1 {[%emt 0:39:03]} Qc7 {[%emt 0:47:25]} 19. Rd3 {[%emt 0:47:25]} Rfd8 {[%emt 0:44:17]} 20. Rh3 {[%emt 0:33:13]} Bf8 {[%emt 0:33:13]} 21. Qh5 {[%emt 0:20:08]} Be4 {[%emt 0:32:26]} 22. Qe2 {[%emt 0:32:26]} Bf5 {[%emt 0:29:23]} 23. g4 {[%emt 0:05:10]} Bg6 {[%emt 0:29:04]} 24. Rg3 {[%emt 0:05:11]} Be7 {[%emt 0:25:34]} 25. g5 {[%emt 0:01:57]} b5 {[%emt 0:22:37]} 26. Bb3 {[%emt 0:02:26]} Qb7 {[%emt 0:20:36]} 27. h4 {[%emt 0:02:26]} b4 {[%emt 0:02:26]} 28. axb4 {[%emt 0:02:55]} Bxb4 {[%emt 0:16:02]} 29. Bxb4 $17 {[%emt 0:00:44]} Qxb4 {[%emt 0:16:21]} 30. h5 {[%emt 0:01:11]} Rd2 {[%emt 0:08:16]} 31. Qe1 {[%emt 0:01:40]} Bxh5 {[%emt 0:07:31]} 32. Qc1 {[%emt 0:00:09]} Rad8 {[%emt 0:06:54]} 33. Qc7 {[%emt 0:00:03]} Qd4 {[%emt 0:06:08]} 34. Qa7 {[%emt 0:00:01]} 0-1